[Event "*** Titled Tuesday Blitz"]
[Site "Chess.com"]
[Date "2020.05.19"]
[Round "2"]
[White "manmanlai1"]
[Black "vaishali2001"]
[Result "0-1"]
[WhiteElo "2352"]
[BlackElo "2637"]
[TimeControl "180+1"]
[EndTime "12:19:39 PDT"]
[Termination "vaishali2001 won by checkmate"]

1. e4 {[%clk 0:03:00.9]} 1... e5 {[%clk 0:02:58.2]} 2. Nf3 {[%clk 0:03:01]} 2...
Nc6 {[%clk 0:02:58.5]} 3. Bc4 {[%clk 0:03:01.4]} 3... Nf6 {[%clk 0:02:57.7]} 4.
d3 {[%clk 0:03:01.3]} 4... h6 {[%clk 0:02:57.2]} 5. c3 {[%clk 0:02:59.9]} 5...
d6 {[%clk 0:02:54.3]} 6. O-O {[%clk 0:02:57]} 6... g5 {[%clk 0:02:54.4]} 7. d4
{[%clk 0:02:49.7]} 7... Qe7 {[%clk 0:02:54.1]} 8. b4 {[%clk 0:02:44.8]} 8... Bg7
{[%clk 0:02:35.9]} 9. b5 {[%clk 0:02:30.7]} 9... Na5 {[%clk 0:02:31]} 10. Bd3
{[%clk 0:02:30.7]} 10... O-O {[%clk 0:02:20.8]} 11. dxe5 {[%clk 0:02:26]} 11...
dxe5 {[%clk 0:02:19.5]} 12. Ba3 {[%clk 0:02:25.5]} 12... Qe8 {[%clk 0:02:14.8]}
13. Nbd2 {[%clk 0:02:12.4]} 13... b6 {[%clk 0:02:04.6]} 14. Re1 {[%clk
0:02:03.2]} 14... Bb7 {[%clk 0:01:31.5]} 15. Nf1 {[%clk 0:02:01.1]} 15... Rd8
{[%clk 0:01:30.3]} 16. Qc2 {[%clk 0:02:00.8]} 16... Nh5 {[%clk 0:01:02.8]} 17.
Ne3 {[%clk 0:01:49.1]} 17... Nf4 {[%clk 0:01:00.3]} 18. Bf1 {[%clk 0:01:47.9]}
18... g4 {[%clk 0:00:41.5]} 19. Nh4 {[%clk 0:01:45.8]} 19... Qe6 {[%clk
0:00:42]} 20. Nhf5 {[%clk 0:01:26.6]} 20... Rfe8 {[%clk 0:00:38.9]} 21. Rad1
{[%clk 0:01:20]} 21... h5 {[%clk 0:00:35.1]} 22. c4 {[%clk 0:01:00.9]} 22... Kh7
{[%clk 0:00:27.9]} 23. Nd5 {[%clk 0:00:53.9]} 23... Rd7 {[%clk 0:00:19.7]} 24.
c5 {[%clk 0:00:52.1]} 24... bxc5 {[%clk 0:00:18.7]} 25. Bxc5 {[%clk 0:00:51.5]}
25... Bxd5 {[%clk 0:00:17.4]} 26. exd5 {[%clk 0:00:43.4]} 26... Qg6 {[%clk
0:00:17.6]} 27. Qb1 {[%clk 0:00:34]} 27... Nb7 {[%clk 0:00:16.4]} 28. Bb4 {[%clk
0:00:33.4]} 28... Nxd5 {[%clk 0:00:15.3]} 29. Bd2 {[%clk 0:00:17.3]} 29... Nf6
{[%clk 0:00:10.2]} 30. Bd3 {[%clk 0:00:16.3]} 30... Rxd3 {[%clk 0:00:09.9]} 31.
Qxd3 {[%clk 0:00:14.9]} 31... e4 {[%clk 0:00:10.5]} 32. Qc3 {[%clk 0:00:12.2]}
32... Qxf5 {[%clk 0:00:10.8]} 33. Qxc7 {[%clk 0:00:12.8]} 33... Nc5 {[%clk
0:00:10.2]} 34. Be3 {[%clk 0:00:11.6]} 34... Nd3 {[%clk 0:00:09.9]} 35. Rf1
{[%clk 0:00:12]} 35... Nd5 {[%clk 0:00:08.5]} 36. Qxa7 {[%clk 0:00:11.4]} 36...
Re6 {[%clk 0:00:07.2]} 37. b6 {[%clk 0:00:09.8]} 37... Nxe3 {[%clk 0:00:07.6]}
38. fxe3 {[%clk 0:00:09.5]} 38... Qc5 {[%clk 0:00:08.2]} 39. Qxf7 {[%clk
0:00:08.3]} 39... Qxe3+ {[%clk 0:00:08.6]} 40. Kh1 {[%clk 0:00:08.8]} 40... Rxb6
{[%clk 0:00:08.6]} 41. Qf5+ {[%clk 0:00:08.2]} 41... Rg6 {[%clk 0:00:08.2]} 42.
Qxh5+ {[%clk 0:00:07]} 42... Rh6 {[%clk 0:00:08.8]} 43. Qf5+ {[%clk 0:00:06.9]}
43... Kh8 {[%clk 0:00:09.1]} 44. Qc8+ {[%clk 0:00:06.6]} 44... Kh7 {[%clk
0:00:09.6]} 45. Qf5+ {[%clk 0:00:07.2]} 45... Rg6 {[%clk 0:00:09.9]} 46. Qh5+
{[%clk 0:00:06.9]} 46... Qh6 {[%clk 0:00:09.9]} 47. Qf5 {[%clk 0:00:06.6]} 47...
g3 {[%clk 0:00:09.2]} 48. h3 {[%clk 0:00:06.4]} 48... Nf2+ {[%clk 0:00:08.9]}
49. Kg1 {[%clk 0:00:06.2]} 49... Nxd1 {[%clk 0:00:08]} 50. Rxd1 {[%clk
0:00:07.1]} 50... Qe3+ {[%clk 0:00:07.2]} 51. Kh1 {[%clk 0:00:07.4]} 51... Qe2
{[%clk 0:00:07.2]} 52. Rb1 {[%clk 0:00:06.1]} 52... Qd3 {[%clk 0:00:06.6]} 53.
Qh5+ {[%clk 0:00:05.9]} 53... Rh6 {[%clk 0:00:06.8]} 54. Qf5+ {[%clk 0:00:05.5]}
54... Rg6 {[%clk 0:00:07.1]} 55. Qh5+ {[%clk 0:00:05.5]} 55... Bh6 {[%clk
0:00:07.5]} 56. Rb7+ {[%clk 0:00:04.1]} 56... Kh8 {[%clk 0:00:04.1]} 57. Qe5+
{[%clk 0:00:04.2]} 57... Bg7 {[%clk 0:00:04.4]} 58. Qe8+ {[%clk 0:00:03.5]}
58... Kh7 {[%clk 0:00:04.3]} 59. Qa4 {[%clk 0:00:03.1]} 59... Qf1# {[%clk
0:00:04.3]} 0-1

[Event "*** Titled Tuesday Blitz"]
[Site "Chess.com"]
[Date "2020.05.19"]
[Round "2"]
[White "bait_or_mate"]
[Black "fridaywins"]
[Result "1/2-1/2"]
[WhiteElo "2448"]
[BlackElo "2250"]
[TimeControl "180+1"]
[EndTime "12:19:40 PDT"]
[Termination "Game drawn by repetition"]

1. d4 {[%clk 0:03:00.9]} 1... Nf6 {[%clk 0:02:58.1]} 2. c4 {[%clk 0:03:01]} 2...
g6 {[%clk 0:02:55.2]} 3. Nc3 {[%clk 0:03:00.6]} 3... Bg7 {[%clk 0:02:56.1]} 4.
e4 {[%clk 0:03:00.9]} 4... O-O {[%clk 0:02:56.5]} 5. Nf3 {[%clk 0:03:00.8]} 5...
d6 {[%clk 0:02:56.6]} 6. Be2 {[%clk 0:03:01.2]} 6... e5 {[%clk 0:02:56.9]} 7.
O-O {[%clk 0:03:01.3]} 7... Nc6 {[%clk 0:02:57]} 8. dxe5 {[%clk 0:03:01.6]} 8...
dxe5 {[%clk 0:02:55.8]} 9. Bg5 {[%clk 0:03:01.2]} 9... Qe8 {[%clk 0:02:32.7]}
10. Nd5 {[%clk 0:02:56]} 10... Nxd5 {[%clk 0:02:31.7]} 11. cxd5 {[%clk
0:02:56.5]} 11... Nd4 {[%clk 0:02:25.4]} 12. Rc1 {[%clk 0:02:56.3]} 12... c6
{[%clk 0:02:24.6]} 13. dxc6 {[%clk 0:02:37]} 13... bxc6 {[%clk 0:02:14.4]} 14.
Nxd4 {[%clk 0:02:31.7]} 14... exd4 {[%clk 0:02:13.8]} 15. Bd3 {[%clk 0:02:30.3]}
15... Be6 {[%clk 0:01:58]} 16. Qc2 {[%clk 0:02:27.6]} 16... Rc8 {[%clk
0:01:50.9]} 17. b3 {[%clk 0:02:27]} 17... Qd7 {[%clk 0:01:41.2]} 18. Qc5 {[%clk
0:02:17.2]} 18... f6 {[%clk 0:01:27.9]} 19. Bf4 {[%clk 0:02:07.5]} 19... Rfd8
{[%clk 0:01:26.4]} 20. Rfd1 {[%clk 0:02:07.3]} 20... Bf8 {[%clk 0:01:25.5]} 21.
Qa5 {[%clk 0:02:06.2]} 21... c5 {[%clk 0:01:18.7]} 22. Ba6 {[%clk 0:02:05.4]}
22... Ra8 {[%clk 0:01:11.8]} 23. f3 {[%clk 0:01:58.5]} 23... Bf7 {[%clk
0:00:58.6]} 24. Bb5 {[%clk 0:01:48.5]} 24... Qb7 {[%clk 0:00:56.8]} 25. Qa4
{[%clk 0:01:48.5]} 25... Qb6 {[%clk 0:00:52.2]} 26. Bc4 {[%clk 0:01:40.8]} 26...
Qb4 {[%clk 0:00:47.4]} 27. Qc6 {[%clk 0:01:29.1]} 27... Bxc4 {[%clk 0:00:39.3]}
28. Rxc4 {[%clk 0:01:28.4]} 28... Qb6 {[%clk 0:00:39.3]} 29. Qa4 {[%clk
0:01:15.1]} 29... a5 {[%clk 0:00:38.9]} 30. Kh1 {[%clk 0:00:55.7]} 30... h5
{[%clk 0:00:38.3]} 31. Rc2 {[%clk 0:00:54.6]} 31... g5 {[%clk 0:00:29.8]} 32.
Qc4+ {[%clk 0:00:53]} 32... Kg7 {[%clk 0:00:25.4]} 33. Bg3 {[%clk 0:00:48.8]}
33... h4 {[%clk 0:00:25.1]} 34. Bf2 {[%clk 0:00:44.4]} 34... Qa6 {[%clk
0:00:25.2]} 35. Rd3 {[%clk 0:00:21]} 35... Qxc4 {[%clk 0:00:23.9]} 36. Rxc4
{[%clk 0:00:21.9]} 36... a4 {[%clk 0:00:24.1]} 37. bxa4 {[%clk 0:00:14.7]} 37...
Rdb8 {[%clk 0:00:23.3]} 38. Rb3 {[%clk 0:00:11.5]} 38... Kf7 {[%clk 0:00:18.8]}
39. Kg1 {[%clk 0:00:11.2]} 39... Rxb3 {[%clk 0:00:15.1]} 40. axb3 {[%clk
0:00:12.1]} 40... Rb8 {[%clk 0:00:15.2]} 41. b4 {[%clk 0:00:07.9]} 41... cxb4
{[%clk 0:00:15.1]} 42. Bxd4 {[%clk 0:00:05.2]} 42... b3 {[%clk 0:00:16]} 43. Rc1
{[%clk 0:00:03.9]} 43... b2 {[%clk 0:00:14.9]} 44. Rb1 {[%clk 0:00:03.7]} 44...
Ba3 {[%clk 0:00:14.6]} 45. Kf2 {[%clk 0:00:03.8]} 45... Rb4 {[%clk 0:00:13.8]}
46. Bc3 {[%clk 0:00:02.6]} 46... Rxa4 {[%clk 0:00:13.6]} 47. Ke3 {[%clk
0:00:02.2]} 47... Ra6 {[%clk 0:00:11.8]} 48. Kd3 {[%clk 0:00:02.6]} 48... Ke6
{[%clk 0:00:11.6]} 49. Kc2 {[%clk 0:00:03]} 49... Rc6 {[%clk 0:00:10.6]} 50. Kb3
{[%clk 0:00:02.8]} 50... h3 {[%clk 0:00:10.7]} 51. gxh3 {[%clk 0:00:02.5]} 51...
Bd6 {[%clk 0:00:09.8]} 52. Bxb2 {[%clk 0:00:02.4]} 52... Bxh2 {[%clk 0:00:07.8]}
53. Rd1 {[%clk 0:00:02.7]} 53... Be5 {[%clk 0:00:07.6]} 54. Bc1 {[%clk
0:00:01.5]} 54... Rb6+ {[%clk 0:00:07.2]} 55. Kc4 {[%clk 0:00:01.4]} 55... Rc6+
{[%clk 0:00:08.1]} 56. Kd3 {[%clk 0:00:01.5]} 56... Rc3+ {[%clk 0:00:07.8]} 57.
Ke2 {[%clk 0:00:01.8]} 57... Rc2+ {[%clk 0:00:08.3]} 58. Bd2 {[%clk 0:00:01.2]}
58... Ra2 {[%clk 0:00:06.3]} 59. Kd3 {[%clk 0:00:01.8]} 59... Ra3+ {[%clk
0:00:05.6]} 60. Ke2 {[%clk 0:00:02.4]} 60... Ra2 {[%clk 0:00:05.8]} 61. Ke3
{[%clk 0:00:02.4]} 61... Ra3+ {[%clk 0:00:06]} 62. Ke2 {[%clk 0:00:02.8]} 62...
Ra2 {[%clk 0:00:06.9]} 1/2-1/2

[Event "*** Titled Tuesday Blitz"]
[Site "Chess.com"]
[Date "2020.05.19"]
[Round "2"]
[White "Alexander_Zubov"]
[Black "gross-aleks"]
[Result "1-0"]
[WhiteElo "2945"]
[BlackElo "2559"]
[TimeControl "180+1"]
[EndTime "12:19:41 PDT"]
[Termination "Alexander_Zubov won by resignation"]

1. d4 {[%clk 0:03:00.9]} 1... Nf6 {[%clk 0:02:59]} 2. Nf3 {[%clk 0:03:00.4]}
2... e6 {[%clk 0:02:59.1]} 3. c4 {[%clk 0:02:59.7]} 3... b6 {[%clk 0:02:59.1]}
4. a3 {[%clk 0:02:59.1]} 4... Bb7 {[%clk 0:02:58.4]} 5. Nc3 {[%clk 0:02:58.5]}
5... Ne4 {[%clk 0:02:58]} 6. Nxe4 {[%clk 0:02:57.5]} 6... Bxe4 {[%clk
0:02:58.1]} 7. Nd2 {[%clk 0:02:57.5]} 7... Bb7 {[%clk 0:02:56.1]} 8. e4 {[%clk
0:02:57.1]} 8... d6 {[%clk 0:02:52.8]} 9. Bd3 {[%clk 0:02:55.4]} 9... Nc6 {[%clk
0:02:52.1]} 10. Nf3 {[%clk 0:02:53.5]} 10... e5 {[%clk 0:02:44.5]} 11. d5 {[%clk
0:02:51.2]} 11... Ne7 {[%clk 0:02:43.6]} 12. h4 {[%clk 0:02:49.7]} 12... h5
{[%clk 0:02:41.3]} 13. Bc2 {[%clk 0:02:39.7]} 13... Bc8 {[%clk 0:02:38.1]} 14.
Ba4+ {[%clk 0:02:38.4]} 14... Bd7 {[%clk 0:02:38]} 15. Ng5 {[%clk 0:02:35.6]}
15... Ng8 {[%clk 0:02:23.4]} 16. Be3 {[%clk 0:02:02.8]} 16... Nf6 {[%clk
0:02:22.5]} 17. f3 {[%clk 0:02:01.2]} 17... Bxa4 {[%clk 0:02:20.9]} 18. Qxa4+
{[%clk 0:02:00.6]} 18... Qd7 {[%clk 0:02:21.7]} 19. Qa6 {[%clk 0:01:50.5]} 19...
c5 {[%clk 0:02:04.8]} 20. dxc6 {[%clk 0:01:44.3]} 20... Qxc6 {[%clk 0:02:04.3]}
21. a4 {[%clk 0:01:33.2]} 21... Be7 {[%clk 0:01:53.6]} 22. Qb5 {[%clk
0:01:32.8]} 22... Rc8 {[%clk 0:01:29.7]} 23. b3 {[%clk 0:01:24.5]} 23... O-O
{[%clk 0:01:28.5]} 24. Qxc6 {[%clk 0:01:04.7]} 24... Rxc6 {[%clk 0:01:26.8]} 25.
a5 {[%clk 0:01:01.5]} 25... bxa5 {[%clk 0:01:12.5]} 26. Rxa5 {[%clk 0:00:59.7]}
26... a6 {[%clk 0:01:12.5]} 27. Kd2 {[%clk 0:00:55.7]} 27... Ra8 {[%clk
0:01:03.8]} 28. Rha1 {[%clk 0:00:52.6]} 28... Bd8 {[%clk 0:01:02.7]} 29. R5a3
{[%clk 0:00:48.8]} 29... Nd7 {[%clk 0:01:02.2]} 30. Kc3 {[%clk 0:00:43.2]} 30...
a5 {[%clk 0:00:59.5]} 31. Kc2 {[%clk 0:00:39.1]} 31... Rb8 {[%clk 0:00:49.9]}
32. g3 {[%clk 0:00:28.6]} 32... Nc5 {[%clk 0:00:45.6]} 33. R1a2 {[%clk
0:00:22.3]} 33... Na6 {[%clk 0:00:42.1]} 34. Bd2 {[%clk 0:00:21.2]} 34... Bb6
{[%clk 0:00:27.1]} 35. Nh3 {[%clk 0:00:18.2]} 35... g6 {[%clk 0:00:26.5]} 36.
Bc3 {[%clk 0:00:14.4]} 36... f5 {[%clk 0:00:25.6]} 37. exf5 {[%clk 0:00:13.7]}
37... gxf5 {[%clk 0:00:26.5]} 38. Ng5 {[%clk 0:00:14.6]} 38... Nc5 {[%clk
0:00:16.9]} 39. Ra1 {[%clk 0:00:10.2]} 39... Rb7 {[%clk 0:00:15.6]} 40. Rb1
{[%clk 0:00:09.7]} 40... Ra7 {[%clk 0:00:10.2]} 41. Rd1 {[%clk 0:00:09.5]} 41...
Kg7 {[%clk 0:00:09.1]} 42. f4 {[%clk 0:00:07.8]} 42... Kf6 {[%clk 0:00:08.9]}
43. Rd5 {[%clk 0:00:07.2]} 43... Ne6 {[%clk 0:00:07.1]} 44. fxe5+ {[%clk
0:00:06.9]} 44... dxe5 {[%clk 0:00:07.4]} 45. Bxe5+ {[%clk 0:00:07.5]} 45... Kg6
{[%clk 0:00:07.2]} 46. Nf3 {[%clk 0:00:06.6]} 46... Nc5 {[%clk 0:00:07.1]} 47.
Bd4 {[%clk 0:00:06.4]} 47... Kf7 {[%clk 0:00:06.2]} 48. Ne5+ {[%clk 0:00:06.3]}
48... Ke6 {[%clk 0:00:07.1]} 49. Nxc6 {[%clk 0:00:07.2]} 49... Nxb3 {[%clk
0:00:07]} 50. Bxb6 {[%clk 0:00:06.1]} 50... Rd7 {[%clk 0:00:06.4]} 51. Kxb3
{[%clk 0:00:04.2]} 51... Rb7 {[%clk 0:00:07.3]} 52. Rb5 {[%clk 0:00:03.3]} 52...
f4 {[%clk 0:00:08.2]} 53. gxf4 {[%clk 0:00:02.3]} 53... Kd6 {[%clk 0:00:08]} 54.
Nxa5 {[%clk 0:00:02.6]} 54... Rf7 {[%clk 0:00:07.3]} 55. Bc5+ {[%clk 0:00:03.5]}
55... Ke6 {[%clk 0:00:08]} 56. Nc6 {[%clk 0:00:03.6]} 56... Kf5 {[%clk
0:00:08.9]} 57. Nd4+ {[%clk 0:00:04.5]} 57... Ke4 {[%clk 0:00:08.8]} 58. Ne6
{[%clk 0:00:04.1]} 58... Rg7 {[%clk 0:00:09.7]} 59. Ng5+ {[%clk 0:00:04.8]}
59... Kf5 {[%clk 0:00:09.4]} 60. Kb4 {[%clk 0:00:05.5]} 60... Kg4 {[%clk
0:00:10]} 61. Rd3 {[%clk 0:00:06.4]} 61... Rc7 {[%clk 0:00:10.5]} 62. Rd5 {[%clk
0:00:07.3]} 1-0

[Event "*** Titled Tuesday Blitz"]
[Site "Chess.com"]
[Date "2020.05.19"]
[Round "2"]
[White "GM4life"]
[Black "catalin009"]
[Result "0-1"]
[WhiteElo "2196"]
[BlackElo "2431"]
[TimeControl "180+1"]
[EndTime "12:19:42 PDT"]
[Termination "catalin009 won by checkmate"]

1. e4 {[%clk 0:03:00.9]} 1... g6 {[%clk 0:02:58.7]} 2. d4 {[%clk 0:03:00.6]}
2... Bg7 {[%clk 0:02:59.6]} 3. Nc3 {[%clk 0:03:00.4]} 3... d6 {[%clk 0:03:00]}
4. f4 {[%clk 0:03:00.2]} 4... a6 {[%clk 0:02:56.1]} 5. Nf3 {[%clk 0:03:00.1]}
5... b5 {[%clk 0:02:55.9]} 6. Bd3 {[%clk 0:02:59.9]} 6... Bb7 {[%clk 0:02:54.7]}
7. O-O {[%clk 0:02:58.1]} 7... b4 {[%clk 0:02:49.2]} 8. Ne2 {[%clk 0:02:53.7]}
8... Nf6 {[%clk 0:02:49.2]} 9. e5 {[%clk 0:02:52]} 9... Nd5 {[%clk 0:02:41.2]}
10. f5 {[%clk 0:02:26.8]} 10... Nc6 {[%clk 0:02:05.7]} 11. e6 {[%clk 0:02:03]}
11... fxe6 {[%clk 0:02:03.8]} 12. fxg6 {[%clk 0:01:47.5]} 12... hxg6 {[%clk
0:01:33.4]} 13. Bxg6+ {[%clk 0:01:45.1]} 13... Kd7 {[%clk 0:01:34]} 14. c4
{[%clk 0:01:40.2]} 14... bxc3 {[%clk 0:01:32]} 15. bxc3 {[%clk 0:01:41.1]} 15...
Qg8 {[%clk 0:01:27.1]} 16. Ng5 {[%clk 0:01:29.6]} 16... Bxd4+ {[%clk 0:01:20.3]}
17. Nxd4 {[%clk 0:01:26.8]} 17... Qxg6 {[%clk 0:01:16.7]} 18. Ndxe6 {[%clk
0:01:18.4]} 18... Ne5 {[%clk 0:01:14.7]} 19. c4 {[%clk 0:00:47.2]} 19... Nf6
{[%clk 0:01:04.7]} 20. Nc5+ {[%clk 0:00:45.3]} 20... Kc8 {[%clk 0:00:57.3]} 21.
Nxb7 {[%clk 0:00:45.4]} 21... Kxb7 {[%clk 0:00:56.6]} 22. c5 {[%clk 0:00:38]}
22... Qd3 {[%clk 0:00:51.1]} 23. Bd2 {[%clk 0:00:34.1]} 23... Qd4+ {[%clk
0:00:46.1]} 24. Kh1 {[%clk 0:00:33.1]} 24... Rxh2+ {[%clk 0:00:17.7]} 25. Kxh2
{[%clk 0:00:32.2]} 25... Rh8+ {[%clk 0:00:18.6]} 26. Nh3 {[%clk 0:00:30.2]}
26... Neg4+ {[%clk 0:00:18.4]} 27. Kh1 {[%clk 0:00:23.1]} 27... Ne4 {[%clk
0:00:10.8]} 28. Qxg4 {[%clk 0:00:20.5]} 28... Nf2+ {[%clk 0:00:09.2]} 29. Rxf2
{[%clk 0:00:20.6]} 29... Qxg4 {[%clk 0:00:09.2]} 30. Rb1+ {[%clk 0:00:19.9]}
30... Kc6 {[%clk 0:00:08.1]} 31. cxd6 {[%clk 0:00:19.1]} 31... exd6 {[%clk
0:00:08.5]} 32. Rc1+ {[%clk 0:00:16.5]} 32... Kb7 {[%clk 0:00:07.8]} 33. Bc3
{[%clk 0:00:14.8]} 33... Rxh3+ {[%clk 0:00:04.6]} 34. gxh3 {[%clk 0:00:14.5]}
34... Qxh3+ {[%clk 0:00:05.2]} 35. Kg1 {[%clk 0:00:14.6]} 35... Qg3+ {[%clk
0:00:05.1]} 36. Kf1 {[%clk 0:00:14.6]} 36... Qd3+ {[%clk 0:00:04.3]} 37. Kg1
{[%clk 0:00:14.9]} 37... Qg3+ {[%clk 0:00:03.3]} 38. Kf1 {[%clk 0:00:15.1]}
38... Qd3+ {[%clk 0:00:03.5]} 39. Re2 {[%clk 0:00:13.4]} 39... Qh3+ {[%clk
0:00:03]} 40. Ke1 {[%clk 0:00:12.8]} 40... c5 {[%clk 0:00:02.9]} 41. Rb1+ {[%clk
0:00:11.7]} 41... Kc6 {[%clk 0:00:03.3]} 42. Rbb2 {[%clk 0:00:07.6]} 42... Qxc3+
{[%clk 0:00:03.3]} 43. Kf2 {[%clk 0:00:08.1]} 43... Qd4+ {[%clk 0:00:03.3]} 44.
Kg2 {[%clk 0:00:07.7]} 44... a5 {[%clk 0:00:03.7]} 45. Red2 {[%clk 0:00:06.4]}
45... Qe4+ {[%clk 0:00:03.6]} 46. Kf2 {[%clk 0:00:06.5]} 46... a4 {[%clk
0:00:04.2]} 47. Re2 {[%clk 0:00:05.5]} 47... Qd4+ {[%clk 0:00:03.9]} 48. Kg2
{[%clk 0:00:04.7]} 48... c4 {[%clk 0:00:04]} 49. Rbd2 {[%clk 0:00:04.9]} 49...
Qc5 {[%clk 0:00:03.4]} 50. Rf2 {[%clk 0:00:03.4]} 50... c3 {[%clk 0:00:02.1]}
51. Rc2 {[%clk 0:00:03.3]} 51... Qg5+ {[%clk 0:00:02.6]} 52. Kf1 {[%clk
0:00:03.2]} 52... Qb5+ {[%clk 0:00:01.7]} 53. Kg1 {[%clk 0:00:02.9]} 53... Qd3
{[%clk 0:00:02.3]} 54. Kg2 {[%clk 0:00:02.8]} 54... Kc5 {[%clk 0:00:02]} 55.
Rf5+ {[%clk 0:00:02.4]} 55... Qxf5 {[%clk 0:00:01.7]} 56. Rf2 {[%clk 0:00:02.8]}
56... Qxf2+ {[%clk 0:00:01.5]} 57. Kxf2 {[%clk 0:00:03.5]} 57... c2 {[%clk
0:00:02.4]} 58. Ke3 {[%clk 0:00:04.3]} 58... c1=Q+ {[%clk 0:00:03.2]} 59. Kf3
{[%clk 0:00:03.9]} 59... Qa3+ {[%clk 0:00:04.1]} 60. Ke4 {[%clk 0:00:04.2]}
60... Qxa2 {[%clk 0:00:05]} 61. Kf5 {[%clk 0:00:04.9]} 61... Qb3 {[%clk
0:00:05.9]} 62. Kf6 {[%clk 0:00:05.1]} 62... a3 {[%clk 0:00:06.8]} 63. Ke7
{[%clk 0:00:06]} 63... a2 {[%clk 0:00:07.7]} 64. Kd7 {[%clk 0:00:06.8]} 64...
a1=Q {[%clk 0:00:08.6]} 65. Kc7 {[%clk 0:00:07.6]} 65... d5 {[%clk 0:00:09.5]}
66. Kd7 {[%clk 0:00:07.8]} 66... d4 {[%clk 0:00:10.4]} 67. Ke7 {[%clk
0:00:06.8]} 67... d3 {[%clk 0:00:11.3]} 68. Kd8 {[%clk 0:00:07.4]} 68... d2
{[%clk 0:00:12.2]} 69. Ke8 {[%clk 0:00:08.2]} 69... Qd4 {[%clk 0:00:12.5]} 70.
Kf8 {[%clk 0:00:09.1]} 70... Qbe3 {[%clk 0:00:13.1]} 71. Kg8 {[%clk 0:00:09.1]}
71... Qdf4 {[%clk 0:00:13.4]} 72. Kh8 {[%clk 0:00:10]} 72... Qeg3 {[%clk
0:00:13.6]} 73. Kh7 {[%clk 0:00:10.5]} 73... Qfh4# {[%clk 0:00:14.5]} 0-1

[Event "*** Titled Tuesday Blitz"]
[Site "Chess.com"]
[Date "2020.05.19"]
[Round "2"]
[White "Hasangatin_Ramil"]
[Black "nihalsarin"]
[Result "1/2-1/2"]
[WhiteElo "2583"]
[BlackElo "3012"]
[TimeControl "180+1"]
[EndTime "12:19:43 PDT"]
[Termination "Game drawn - insufficient material"]

1. e4 {[%clk 0:03:00.9]} 1... c5 {[%clk 0:02:58.9]} 2. Nf3 {[%clk 0:03:00.9]}
2... d6 {[%clk 0:02:59.5]} 3. d4 {[%clk 0:03:00.1]} 3... cxd4 {[%clk 0:03:00.4]}
4. Qxd4 {[%clk 0:03:00.4]} 4... Nf6 {[%clk 0:03:01.3]} 5. e5 {[%clk 0:02:59.9]}
5... Nc6 {[%clk 0:02:55.8]} 6. Bb5 {[%clk 0:02:59.7]} 6... Qa5+ {[%clk 0:02:53]}
7. Nc3 {[%clk 0:02:59.7]} 7... Qxb5 {[%clk 0:02:53.7]} 8. Nxb5 {[%clk
0:03:00.4]} 8... Nxd4 {[%clk 0:02:54.4]} 9. Nfxd4 {[%clk 0:03:00.7]} 9... dxe5
{[%clk 0:02:54.9]} 10. Nc7+ {[%clk 0:03:01.1]} 10... Kd8 {[%clk 0:02:55.4]} 11.
Nxa8 {[%clk 0:03:01.7]} 11... exd4 {[%clk 0:02:55.9]} 12. Bf4 {[%clk 0:03:01.8]}
12... Nd5 {[%clk 0:02:19.9]} 13. O-O-O {[%clk 0:03:00.8]} 13... Nxf4 {[%clk
0:02:19.9]} 14. Rxd4+ {[%clk 0:02:57.3]} 14... Bd7 {[%clk 0:02:20.8]} 15. Rxf4
{[%clk 0:02:45.1]} 15... g6 {[%clk 0:01:40]} 16. Kb1 {[%clk 0:02:11.1]} 16...
Be6 {[%clk 0:00:51]} 17. Ra4 {[%clk 0:01:58.1]} 17... Kc8 {[%clk 0:00:32.5]} 18.
Rxa7 {[%clk 0:01:24.4]} 18... Bg7 {[%clk 0:00:32.3]} 19. Rd1 {[%clk 0:01:04.7]}
19... Be5 {[%clk 0:00:32.2]} 20. Nb6+ {[%clk 0:00:58.5]} 20... Kc7 {[%clk
0:00:30.6]} 21. Nd5+ {[%clk 0:00:53.8]} 21... Kb8 {[%clk 0:00:17.4]} 22. Ra5
{[%clk 0:00:46.5]} 22... Rd8 {[%clk 0:00:17.4]} 23. Ne3 {[%clk 0:00:39.3]} 23...
Rxd1+ {[%clk 0:00:14.1]} 24. Nxd1 {[%clk 0:00:40.2]} 24... Bxh2 {[%clk 0:00:15]}
25. g3 {[%clk 0:00:36.5]} 25... h5 {[%clk 0:00:15.6]} 26. Ra4 {[%clk 0:00:31.9]}
26... g5 {[%clk 0:00:12.6]} 27. Re4 {[%clk 0:00:30.9]} 27... Bg4 {[%clk
0:00:11.2]} 28. Ne3 {[%clk 0:00:29.7]} 28... Be6 {[%clk 0:00:11.5]} 29. Nd1
{[%clk 0:00:23.4]} 29... Bg4 {[%clk 0:00:10.7]} 30. Ne3 {[%clk 0:00:19.7]} 30...
Be6 {[%clk 0:00:10.6]} 31. Kc1 {[%clk 0:00:19.5]} 31... Bg1 {[%clk 0:00:10.9]}
32. Nd1 {[%clk 0:00:18.2]} 32... Bg4 {[%clk 0:00:10.2]} 33. Rxe7 {[%clk
0:00:17.3]} 33... Bxd1 {[%clk 0:00:09.7]} 34. Kxd1 {[%clk 0:00:17]} 34... Bxf2
{[%clk 0:00:10.4]} 35. Rxf7 {[%clk 0:00:15]} 35... Bxg3 {[%clk 0:00:10.3]} 36.
Rf5 {[%clk 0:00:14.4]} 36... Bf4 {[%clk 0:00:10.1]} 37. Ke2 {[%clk 0:00:14.6]}
37... h4 {[%clk 0:00:10.6]} 38. Kf3 {[%clk 0:00:14.5]} 38... h3 {[%clk
0:00:10.9]} 39. Rf7 {[%clk 0:00:12.3]} 39... Ka7 {[%clk 0:00:08.1]} 40. Rh7
{[%clk 0:00:12.2]} 40... h2 {[%clk 0:00:08.6]} 41. Kg2 {[%clk 0:00:11.4]} 41...
Kb6 {[%clk 0:00:09]} 42. Rxh2 {[%clk 0:00:11.8]} 42... Bxh2 {[%clk 0:00:09.9]}
43. Kxh2 {[%clk 0:00:12.3]} 43... Kc5 {[%clk 0:00:10.6]} 44. Kg3 {[%clk
0:00:11.8]} 44... Kd4 {[%clk 0:00:11.2]} 45. Kg4 {[%clk 0:00:11.8]} 45... Ke3
{[%clk 0:00:11.9]} 46. Kxg5 {[%clk 0:00:11.9]} 46... Kd2 {[%clk 0:00:12.6]} 47.
c4 {[%clk 0:00:11.5]} 47... Kc2 {[%clk 0:00:11.5]} 48. b3 {[%clk 0:00:10.5]}
48... Kb2 {[%clk 0:00:11.5]} 49. b4 {[%clk 0:00:10.2]} 49... Kc3 {[%clk
0:00:11.6]} 50. b5 {[%clk 0:00:07]} 50... Kxc4 {[%clk 0:00:11.7]} 51. Kf5 {[%clk
0:00:05.4]} 51... Kxb5 {[%clk 0:00:11.9]} 52. Ke5 {[%clk 0:00:05.7]} 52... Kc5
{[%clk 0:00:12]} 53. Ke4 {[%clk 0:00:05.5]} 53... Kc4 {[%clk 0:00:12]} 54. Ke5
{[%clk 0:00:04]} 54... Kc5 {[%clk 0:00:12]} 55. Ke6 {[%clk 0:00:03.9]} 55... b5
{[%clk 0:00:11.5]} 56. Kd7 {[%clk 0:00:03.7]} 56... b4 {[%clk 0:00:11.8]} 57.
Kc7 {[%clk 0:00:03.5]} 57... Kb5 {[%clk 0:00:12.4]} 58. Kb7 {[%clk 0:00:03.6]}
58... Ka5 {[%clk 0:00:13]} 59. Ka7 {[%clk 0:00:03.6]} 59... Kb5 {[%clk 0:00:13]}
60. Kb7 {[%clk 0:00:03.9]} 60... Ka4 {[%clk 0:00:13.3]} 61. Kb6 {[%clk
0:00:03.7]} 61... Ka3 {[%clk 0:00:13.8]} 62. Kb5 {[%clk 0:00:03.9]} 62... b3
{[%clk 0:00:14.7]} 63. axb3 {[%clk 0:00:02.8]} 63... Kxb3 {[%clk 0:00:15.6]}
1/2-1/2